fUSD/lending_fUSD_20250716
["ID","MTS","AMOUNT","RATE_DAILY","PERIOD"]
[372587361,1752694258256,-5933.97,0.00020527,2]
[372587362,1752694258267,-2817.29,0.00020527,2]
[372587363,1752694258277,-493.91,0.00020527,2]
[372587364,1752694258287,-460.0,0.00020527,2]
[372587365,1752694258297,-3695.96,0.00020527,2]
[372587366,1752694258306,-460.0,0.00020527,2]
[372587367,1752694258316,-460.0,0.00020527,2]
[372587368,1752694258326,-460.0,0.00020527,2]
[372587369,1752694258335,-460.0,0.00020527,2]
[372587370,1752694258346,-1320.64,0.00020527,2]
[372587371,1752694258356,-467.9,0.00020527,2]
[372587372,1752694258368,-2898.84,0.00020527,2]
[372587373,1752694258379,-460.0,0.00020527,2]
[372587374,1752694258390,-1132.7,0.00020527,2]
[372587375,1752694258400,-477.07059589,0.00020527,2]
[372587376,1752694258410,-3000.0,0.00020528,3]
[372587377,1752694258420,-200.0,0.00020536,2]
[372587378,1752694258430,-500.0,0.00020536,2]
[372587379,1752694258441,-500.0,0.00020536,2]
[372587380,1752694258451,-476.0,0.00020536,2]
[372587381,1752694258460,-500.0,0.00020536,2]
[372587382,1752694258470,-151.55735704,0.00020536,2]
[372587383,1752694258481,-500.0,0.00020536,2]
[372587384,1752694258492,-500.0,0.00020536,2]
[372587385,1752694258502,-500.0,0.00020536,2]
[372587386,1752694258511,-500.0,0.00020536,2]
[372587387,1752694258521,-1455.0,0.00020536,2]
[372587388,1752694258530,-500.0,0.00020536,2]
[372587389,1752694258539,-4741.0,0.00020536,2]
[372587390,1752694258549,-1972.0,0.00020536,2]
[372587391,1752694258559,-150.0,0.00020536,2]
[372587392,1752694258571,-500.0,0.00020536,2]
[372587393,1752694258580,-150.0,0.00020536,2]
[372587394,1752694258591,-150.0,0.00020536,2]
[372587395,1752694258601,-732.34,0.00020546,2]
[372587396,1752694258610,-732.34,0.00020546,2]
[372587397,1752694258619,-1656.95,0.00020547,2]
[372587398,1752694258629,-587.64,0.00020547,2]
[372587399,1752694258639,-460.0,0.00020547,2]
[372587400,1752694258648,-1564.78,0.00020547,2]
[372587401,1752694258658,-460.0,0.00020547,2]
[372587402,1752694258667,-392.22563115,0.00020547,2]
[372587403,1752694258676,-772.32,0.00020547,2]
[372587404,1752694258686,-460.0,0.00020547,2]
[372587405,1752694258697,-3144.44,0.00020547,2]
[372587406,1752694258707,-1330.7,0.00020547,2]
[372587407,1752694258717,-1896.94,0.00020547,2]
[372587408,1752694258726,-159.25872685,0.00020547,2]
[372587409,1752694258739,-1097.47,0.00020547,2]
[372587410,1752694258754,-1469.82,0.00020547,2]
[372587411,1752694258764,-957.9,0.00020547,2]
[372587412,1752694258776,-198.14320143,0.00020547,2]
[372587413,1752694258787,-460.0,0.00020547,2]
[372587414,1752694258797,-460.0,0.00020547,2]
[372587415,1752694258806,-470.30814986,0.00020547,2]
[372587416,1752694258816,-460.0,0.00020547,2]
[372587417,1752694258827,-2876.39,0.00020547,2]
[372587418,1752694258836,-1934.86,0.00020547,2]
[372587419,1752694258846,-460.0,0.00020547,2]
[372587420,1752694258858,-2608.13,0.00020547,2]
[372587421,1752694258869,-460.0,0.00020547,2]
[372587422,1752694258878,-460.0,0.00020547,2]
[372587423,1752694258889,-460.0,0.00020547,2]
[372587424,1752694258900,-460.0,0.00020547,2]
[372587425,1752694258909,-526.01,0.00020547,2]
[372587426,1752694258919,-460.0,0.00020547,2]
[372587427,1752694258928,-583.71669502,0.00020547,2]
[372587428,1752694258939,-491.31,0.00020547,2]
[372587429,1752694258951,-830.86,0.00020547,2]
[372587430,1752694258960,-1378.67,0.00020547,2]
[372587431,1752694258970,-931.2,0.00020547,2]
[372587432,1752694258979,-1359.65,0.00020547,2]
[372587433,1752694258989,-460.0,0.00020547,2]
[372587434,1752694258999,-1983.58,0.00020547,2]
[372587435,1752694259009,-1745.99,0.00020547,2]
[372587436,1752694259018,-503.6,0.00020547,2]
[372587437,1752694259027,-922.13,0.00020547,2]
[372587438,1752694259036,-2672.79,0.00020547,2]
[372587439,1752694259046,-460.0,0.00020547,2]
[372587440,1752694259055,-640.94,0.00020547,2]
[372587441,1752694259064,-9838.15,0.00020547,2]
[372587442,1752694259073,-460.0,0.00020547,2]
[372587443,1752694259085,-2925.31,0.00020547,2]
[372587444,1752694259097,-2608.25,0.00020547,2]
[372587445,1752694259107,-460.0,0.00020547,2]
[372587446,1752694259117,-869.77,0.00020547,2]
[372587447,1752694259127,-460.0,0.00020547,2]
[372587448,1752694259136,-1672.48,0.00020547,2]
[372587449,1752694259147,-460.0,0.00020547,2]
[372587450,1752694259159,-1140.6,0.00020547,2]
[372587451,1752694259168,-1043.68,0.00020547,2]
[372587452,1752694259181,-460.0,0.00020547,2]
[372587453,1752694259192,-1932.45,0.00020547,2]
[372587454,1752694259202,-59244.77,0.00020547,2]
[372587455,1752694259211,-959.99,0.00020547,2]
[372587456,1752694259221,-460.0,0.00020547,2]
[372587457,1752694259231,-626.11,0.00020547,2]
[372587458,1752694259240,-1729.85,0.00020547,2]
[372587459,1752694259250,-1819.74,0.00020547,2]
[372587460,1752694259263,-460.0,0.00020547,2]
[372587461,1752694259274,-3818.88,0.00020547,2]
[372587462,1752694259284,-4762.78,0.00020547,2]
[372587463,1752694259294,-460.0,0.00020547,2]
[372587464,1752694259303,-460.0,0.00020547,2]
[372587465,1752694259313,-460.0,0.00020547,2]
[372587466,1752694259323,-460.0,0.00020547,2]
[372587467,1752694259332,-1231.4,0.00020547,2]
[372587468,1752694259341,-725.57,0.00020547,2]
[372587469,1752694259349,-460.0,0.00020547,2]
[372587470,1752694259358,-512.32,0.00020547,2]
[372587471,1752694259366,-6423.53,0.00020547,2]
[372587472,1752694259375,-460.0,0.00020547,2]
[372587473,1752694259384,-460.0,0.00020547,2]
[372587474,1752694259394,-5637.6,0.00020547,2]
[372587475,1752694259403,-460.0,0.00020547,2]
[372587476,1752694259413,-8631.44,0.00020547,2]
[372587477,1752694259422,-611.66,0.00020547,2]
[372587478,1752694259432,-460.0,0.00020547,2]
[372587479,1752694259443,-3109.43,0.00020547,2]
[372587480,1752694259452,-460.0,0.00020547,2]
[372587481,1752694259462,-2174.91,0.00020547,2]
[372587482,1752694259472,-460.0,0.00020547,2]
[372587483,1752694259482,-3305.62,0.00020547,2]
[372587484,1752694259493,-472.6,0.00020547,2]
[372587485,1752694259503,-626.4,0.00020547,2]
[372587486,1752694259513,-759.17,0.00020547,2]
[372587487,1752694259523,-3348.08,0.00020547,2]
[372587488,1752694259532,-269.39750037,0.00020547,2]
[372587489,1752694259542,-725.87,0.00020547,2]
[372587490,1752694259551,-10145.87,0.00020547,2]
[372587491,1752694259561,-460.0,0.00020547,2]
[372587492,1752694259571,-460.0,0.00020547,2]
[372587493,1752694259581,-460.0,0.00020547,2]
[372587494,1752694259591,-460.0,0.00020547,2]
[372587495,1752694259600,-762.06,0.00020547,2]
[372587496,1752694259610,-962.22,0.00020547,2]
[372587497,1752694259619,-460.0,0.00020547,2]
[372587498,1752694259629,-460.0,0.00020547,2]
[372587499,1752694259639,-1880.32,0.00020547,2]
[372587500,1752694259648,-1461.49,0.00020547,2]
[372587501,1752694259658,-1217.36,0.00020547,2]
[372587502,1752694259668,-599.27,0.00020547,2]
[372587503,1752694259677,-5019.18,0.00020547,2]
[372587504,1752694259687,-460.0,0.00020547,2]
[372587505,1752694259700,-460.0,0.00020547,2]
[372587506,1752694259709,-460.0,0.00020547,2]
[372587507,1752694259719,-5738.75,0.00020547,2]
[372587508,1752694259729,-652.54,0.00020547,2]
[372587509,1752694259741,-460.0,0.00020547,2]
[372587510,1752694259752,-1261.36,0.00020547,2]
[372587511,1752694259762,-6783.38,0.00020547,2]
[372587512,1752694259771,-10900.95,0.00020547,2]
[372587513,1752694259781,-460.0,0.00020547,2]
[372587514,1752694259791,-1096.18,0.00020547,2]
[372587515,1752694259800,-1120.19,0.00020547,2]
[372587516,1752694259810,-460.0,0.00020547,2]
[372587517,1752694259820,-460.0,0.00020547,2]
[372587518,1752694259830,-490.18,0.00020547,2]
[372587519,1752694259842,-460.0,0.00020547,2]
[372587520,1752694259851,-460.0,0.00020547,2]
[372587521,1752694259860,-2746.44,0.00020547,2]
[372587522,1752694259870,-460.0,0.00020547,2]
[372587523,1752694259879,-460.0,0.00020547,2]
[372587524,1752694259888,-460.0,0.00020547,2]
[372587525,1752694259898,-1512.18,0.00020547,2]
[372587526,1752694259908,-460.0,0.00020547,2]
[372587527,1752694259917,-2871.51,0.00020547,2]
[372587528,1752694259927,-1446.2,0.00020547,2]
[372587529,1752694259936,-460.0,0.00020547,2]
[372587530,1752694259948,-460.0,0.00020547,2]
[372587531,1752694259958,-460.0,0.00020547,2]
[372587532,1752694259967,-571.84,0.00020547,2]
[372587533,1752694259977,-460.0,0.00020547,2]
[372587534,1752694259987,-2481.38,0.00020547,2]
[372587535,1752694259996,-1545.1,0.00020547,2]
[372587536,1752694260008,-865.4,0.00020547,2]
[372587537,1752694260348,-579.12,0.00020547,2]
[372587538,1752694260371,-2865.57,0.00020547,2]
[372587539,1752694260381,-460.0,0.00020547,2]
[372587540,1752694260391,-3341.64,0.00020547,2]
[372587541,1752694260401,-954.59,0.00020547,2]
[372587542,1752694260410,-662.44,0.00020547,2]
[372587543,1752694260420,-460.0,0.00020547,2]
[372587544,1752694260430,-460.0,0.00020547,2]
[372587545,1752694260440,-460.0,0.00020547,2]
[372587546,1752694260452,-524.49,0.00020547,2]
[372587547,1752694260462,-1597.39,0.00020547,2]
[372587548,1752694260472,-1445.32,0.00020547,2]
[372587549,1752694260481,-560.64,0.00020547,2]
[372587550,1752694260491,-2709.09,0.00020547,2]
[372587551,1752694260501,-5545.46,0.00020547,2]
[372587552,1752694260512,-1335.53,0.00020547,2]
[372587553,1752694260521,-1304.17,0.00020547,2]
[372587554,1752694260531,-510.13,0.00020547,2]
[372587555,1752694260541,-11171.65,0.00020547,2]
[372587556,1752694260550,-460.0,0.00020547,2]
[372587557,1752694260559,-630.1,0.00020547,2]
[372587558,1752694260569,-2779.93,0.00020547,2]
[372587559,1752694260579,-460.0,0.00020547,2]
[372587560,1752694260589,-460.0,0.00020547,2]
[372587561,1752694260598,-460.0,0.00020547,2]
[372587562,1752694260608,-4474.38,0.00020547,2]
[372587563,1752694260618,-1148.73,0.00020547,2]
[372587564,1752694260628,-460.0,0.00020547,2]
[372587565,1752694260638,-3075.57,0.00020547,2]
[372587566,1752694260648,-526.49,0.00020547,2]
[372587567,1752694260657,-806.94,0.00020547,2]
[372587568,1752694260667,-3091.6,0.00020547,2]
[372587569,1752694260676,-2713.8,0.00020547,2]
[372587570,1752694260685,-2266.31,0.00020547,2]
[372587571,1752694260696,-460.0,0.00020547,2]
[372587572,1752694260706,-1349.87,0.00020547,2]
[372587573,1752694260716,-460.0,0.00020547,2]
[372587574,1752694260726,-549.68,0.00020547,2]
[372587575,1752694260736,-1047.43,0.00020547,2]
[372587576,1752694260750,-2179.05,0.00020547,2]
[372587577,1752694260760,-634.4,0.00020547,2]
[372587578,1752694260769,-1174.7,0.00020547,2]
[372587579,1752694260778,-916.81,0.00020547,2]
[372587580,1752694260790,-460.0,0.00020547,2]
[372587581,1752694260800,-2595.12,0.00020547,2]
[372587582,1752694260810,-3870.23,0.00020547,2]
[372587583,1752694260820,-561.55,0.00020547,2]
[372587584,1752694260830,-460.0,0.00020547,2]
[372587585,1752694260839,-2211.43,0.00020547,2]
[372587586,1752694260849,-460.0,0.00020547,2]
[372587587,1752694260859,-2071.85,0.00020547,2]
[372587588,1752694260868,-957.85,0.00020547,2]
[372587589,1752694260880,-1424.69,0.00020547,2]
[372587590,1752694260891,-28755.27,0.00020547,2]
[372587591,1752694260901,-1935.43,0.00020547,2]
[372587592,1752694260910,-460.0,0.00020547,2]
[372587593,1752694260920,-1704.7,0.00020547,2]
[372587594,1752694260929,-4659.09,0.00020547,2]
[372587595,1752694260938,-460.0,0.00020547,2]
[372587596,1752694260951,-1897.12,0.00020547,2]
[372587597,1752694260961,-460.0,0.00020547,2]
[372587598,1752694260971,-666.96,0.00020547,2]
[372587599,1752694260980,-460.0,0.00020547,2]
[372587600,1752694260989,-460.0,0.00020547,2]
[372587601,1752694261000,-469.65,0.00020547,2]
[372587602,1752694261010,-681.41,0.00020547,2]
[372587603,1752694261019,-1688.57,0.00020547,2]
[372587604,1752694261029,-1780.26,0.00020547,2]
[372587605,1752694261039,-833.15,0.00020547,2]
[372587606,1752694261048,-583.11,0.00020547,2]
[372587607,1752694261058,-500.0,0.00020547,2]
[372587608,1752694261069,-561.17,0.00020547,2]
[372587609,1752694261078,-300.0,0.00020547,2]
[372587610,1752694261088,-1905.83,0.00020547,2]
[372587611,1752694261098,-696.16,0.00020547,2]
[372587612,1752694261107,-539.8,0.00020547,2]
[372587613,1752694261118,-14499.52,0.00020547,2]
[372587614,1752694261128,-414.9466187,0.00020547,2]
[372587615,1752694261137,-1534.79,0.00020547,2]
[372587616,1752694261147,-999.3,0.00020547,2]
[372587617,1752694261156,-477.43,0.00020547,2]
[372587618,1752694261167,-460.0,0.00020547,2]
[372587619,1752694261176,-460.0,0.00020547,2]
[372587620,1752694261186,-1916.81,0.00020547,2]
[372587621,1752694261196,-556.89,0.00020547,2]
[372587622,1752694261206,-5492.42,0.00020547,2]
[372587623,1752694261216,-504.15,0.00020547,2]
[372587624,1752694261226,-575.28,0.00020547,2]
[372587625,1752694261236,-20173.8,0.00020547,2]
[372587626,1752694261246,-460.0,0.00020547,2]
[372587627,1752694261255,-460.0,0.00020547,2]
[372587628,1752694261266,-1749.11,0.00020547,2]
[372587629,1752694261276,-1126.17,0.00020547,2]
[372587630,1752694261286,-460.0,0.00020547,2]
[372587631,1752694261296,-460.0,0.00020547,2]
[372587632,1752694261306,-1743.43,0.00020547,2]
[372587633,1752694261317,-500.0,0.00020547,2]
[372587634,1752694261327,-469.75,0.00020547,2]
[372587635,1752694261337,-460.0,0.00020547,2]
[372587636,1752694261347,-3807.88,0.00020547,2]
[372587637,1752694261356,-1924.77,0.00020547,2]
[372587638,1752694261366,-460.0,0.00020547,2]
[372587639,1752694261376,-1538.52,0.00020547,2]
[372587640,1752694261386,-1430.3,0.00020547,2]
[372587641,1752694261396,-460.0,0.00020547,2]
[372587642,1752694261405,-778.91,0.00020547,2]
[372587643,1752694261415,-2522.39,0.00020547,2]
[372587644,1752694261425,-460.0,0.00020547,2]
[372587645,1752694261438,-1027.2,0.00020547,2]
[372587646,1752694261450,-670.27,0.00020547,2]
[372587647,1752694261460,-551.73,0.00020547,2]
[372587648,1752694261470,-460.0,0.00020547,2]
[372587649,1752694261479,-460.0,0.00020547,2]
[372587650,1752694261489,-460.0,0.00020547,2]
[372587651,1752694261499,-757.32,0.00020547,2]
[372587652,1752694261510,-3913.3,0.00020547,2]
[372587653,1752694261531,-1567.6,0.00020547,2]
[372587654,1752694261542,-536.71,0.00020547,2]
[372587655,1752694261552,-460.0,0.00020547,2]
[372587656,1752694261562,-5842.8,0.00020547,2]
[372587657,1752694261571,-3344.01,0.00020547,2]
[372587658,1752694261581,-1129.98,0.00020547,2]
[372587659,1752694261591,-593.19,0.00020547,2]
[372587660,1752694261600,-659.29,0.00020547,2]
[372587661,1752694261610,-1804.39,0.00020547,2]
[372587662,1752694261620,-1932.82,0.00020547,2]
[372587663,1752694261630,-767.34,0.00020547,2]
[372587664,1752694261639,-1408.65,0.00020547,2]
[372587665,1752694261649,-645.81,0.00020547,2]
[372587666,1752694261659,-460.0,0.00020547,2]
[372587667,1752694261668,-1682.16,0.00020547,2]
[372587668,1752694261678,-3981.88,0.00020547,2]
[372587669,1752694261687,-460.0,0.00020547,2]
[372587670,1752694261699,-460.0,0.00020547,2]
[372587671,1752694261708,-12723.88,0.00020547,2]
[372587672,1752694261718,-460.0,0.00020547,2]
[372587673,1752694261727,-460.0,0.00020547,2]
[372587674,1752694261739,-460.0,0.00020547,2]
[372587675,1752694261752,-3114.36,0.00020547,2]
[372587676,1752694261761,-670.06,0.00020547,2]
[372587677,1752694261770,-500.0,0.00020548,2]
[372587678,1752694261780,-623.0,0.00020548,2]
[372587679,1752694261791,-500.0,0.00020548,2]
[372587680,1752694261800,-500.0,0.00020548,2]
[372587681,1752694261810,-500.0,0.00020548,2]
[372587682,1752694261820,-662.0,0.00020548,2]
[372587683,1752694261830,-500.0,0.00020548,2]
[372587684,1752694261839,-500.0,0.00020548,2]
[372587685,1752694261848,-435.0,0.00020548,2]
[372587686,1752694261858,-500.0,0.00020548,2]
[372587687,1752694261867,-500.0,0.00020548,2]
[372587688,1752694261876,-150.0,0.00020548,2]
[372587689,1752694261886,-500.0,0.00020548,2]
[372587690,1752694261896,-150.0,0.00020548,2]
[372587691,1752694261906,-500.0,0.00020548,2]
[372587692,1752694261915,-151.0,0.00020548,2]
[372587693,1752694261925,-6235.19570527,0.00020548,2]
[372587694,1752694261935,-152.0,0.00020562,5]
[372587695,1752694261946,-2823.09,0.00020573,2]
[372587696,1752694261956,-500.0,0.00020573,2]
[372587697,1752694261966,-500.0,0.00020573,2]
[372587698,1752694261976,-500.0,0.00020573,2]
[372587699,1752694261986,-960.54859386,0.0002059,3]
[372587700,1752694261996,-1242.077173,0.00020593,2]
[372587701,1752694262006,-1242.077173,0.00020593,2]
[372587702,1752694262016,-5837.79762,0.00020593,2]
[372587703,1752694262025,-5837.79762,0.00020593,2]
[372587704,1752694262035,-151.0,0.00020593,2]
[372587705,1752694262045,-373.495347,0.00020593,2]
[372587706,1752694262054,-373.495347,0.00020593,2]
[372587707,1752694262064,-151.0,0.00020593,2]
[372587708,1752694262073,-277.919463,0.00020593,2]
[372587709,1752694262082,-151.0,0.00020593,2]
[372587710,1752694262092,-277.919463,0.00020593,2]
[372587711,1752694262101,-264.897891,0.00020593,2]
[372587712,1752694262111,-151.0,0.00020593,2]
[372587713,1752694262120,-151.0,0.00020593,2]
[372587714,1752694262130,-924.321404,0.00020593,2]
[372587715,1752694262139,-924.321404,0.00020593,2]
[372587716,1752694262148,-151.0,0.00020593,2]
[372587717,1752694262158,-200.349214,0.00020593,2]
[372587718,1752694262167,-200.349214,0.00020593,2]
[372587719,1752694262177,-151.0,0.00020593,2]
[372587720,1752694262187,-151.0,0.00020593,2]
[372587721,1752694262199,-752.265853,0.00020593,2]
[372587722,1752694262209,-752.265853,0.00020593,2]
[372587723,1752694262219,-151.0,0.00020593,2]
[372587724,1752694262229,-151.0,0.00020593,2]
[372587725,1752694262240,-151.0,0.00020593,2]
[372587726,1752694262250,-151.0,0.00020593,2]
[372587727,1752694262261,-151.0,0.00020593,2]
[372587728,1752694262271,-151.0,0.00020593,2]
[372587729,1752694262281,-151.0,0.00020593,2]
[372587730,1752694262290,-6465.89794637,0.00020603,2]
[372587731,1752694262300,-200.0,0.00020606,2]
[372587732,1752694262310,-499.46082908,0.00020622,2]
[372587733,1752694262319,-1377.919393,0.00020633,2]
[372587734,1752694262329,-1377.919393,0.00020633,2]
[372587735,1752694262339,-151.0,0.00020633,2]
[372587736,1752694262350,-151.0,0.00020633,2]
[372587737,1752694262359,-151.0,0.00020633,2]
[372587738,1752694262368,-151.0,0.00020633,2]
[372587739,1752694262378,-495.930608,0.00020633,2]
[372587740,1752694262389,-495.930608,0.00020633,2]
[372587741,1752694262400,-151.0,0.00020633,2]
[372587742,1752694262410,-151.0,0.00020633,2]
[372587743,1752694262419,-166.87251,0.00020633,2]
[372587744,1752694262427,-166.87251,0.00020633,2]
[372587745,1752694262437,-369.229617,0.00020633,2]
[372587746,1752694262447,-151.0,0.00020633,2]
[372587747,1752694262456,-151.0,0.00020633,2]
[372587748,1752694262466,-369.229617,0.00020633,2]
[372587749,1752694262474,-151.0,0.00020633,2]
[372587750,1752694262483,-151.0,0.00020633,2]
[372587751,1752694262492,-240.463999,0.00020633,2]
[372587752,1752694262502,-240.463999,0.00020633,2]
[372587753,1752694262511,-151.0,0.00020633,2]
[372587754,1752694262520,-151.0,0.00020633,2]
[372587755,1752694262530,-729.281418,0.00020633,2]
[372587756,1752694262539,-729.281418,0.00020633,2]
[372587757,1752694262547,-185.955213,0.00020633,2]
[372587758,1752694262557,-185.955213,0.00020633,2]
[372587759,1752694262566,-151.0,0.00020633,2]
[372587760,1752694262576,-151.0,0.00020633,2]
[372587761,1752694262585,-250.0,0.00020635,2]
[372587762,1752694262595,-150.0,0.0002065,2]
[372587763,1752694262605,-6705.13617038,0.00020658,2]
[372587764,1752694262614,-20000.0,0.0002066,2]
[372587765,1752694262624,-6271.53,0.00020663,2]
[372587766,1752694262634,-2395.89,0.00020663,2]
[372587767,1752694262643,-2253.51,0.00020663,2]
[372587768,1752694262654,-2984.68,0.00020663,2]
[372587769,1752694262664,-1035.24,0.00020663,2]
[372587770,1752694262674,-4601.06,0.00020663,2]
[372587771,1752694262684,-12291.03,0.00020663,2]
[372587772,1752694262694,-2813.36,0.00020663,2]
[372587773,1752694262704,-460.0,0.00020663,2]
[372587774,1752694262715,-2348.95,0.00020663,2]
[372587775,1752694262724,-1391.5,0.00020663,2]
[372587776,1752694262736,-3452.04,0.00020663,2]
[372587777,1752694262750,-968.86,0.00020663,2]
[372587778,1752694262760,-2953.12,0.00020663,2]
[372587779,1752694262873,-646.85,0.00020663,2]
[372587780,1752694262883,-11314.79,0.00020663,2]
[372587781,1752694262893,-2418.2,0.00020663,2]
[372587782,1752694262903,-3107.21,0.00020663,2]
[372587783,1752694262912,-2361.71,0.00020663,2]
[372587784,1752694262922,-729.37,0.00020663,2]
[372587785,1752694262931,-1621.06,0.00020663,2]
[372587786,1752694262941,-1194.52,0.00020664,2]
[372587787,1752694262953,-3120.91,0.00020664,2]
[372587788,1752694262964,-5223.53,0.00020664,2]
[372587789,1752694262974,-3137.69,0.00020664,2]
[372587790,1752694262985,-460.0,0.00020664,2]
[372587791,1752694262995,-3420.9,0.00020664,2]
[372587792,1752694263005,-460.0,0.00020664,2]
[372587793,1752694263014,-460.0,0.00020664,2]
[372587794,1752694263024,-1086.3,0.00020664,2]
[372587795,1752694263033,-9171.8,0.00020664,2]
[372587796,1752694263043,-727.29,0.00020664,2]
[372587797,1752694263054,-3548.11,0.00020664,2]
[372587798,1752694263063,-1563.95,0.00020664,2]
[372587799,1752694263073,-1111.61,0.00020664,2]
[372587800,1752694263083,-460.0,0.00020664,2]
[372587801,1752694263093,-5933.97,0.00020664,2]
[372587802,1752694263102,-2817.29,0.00020664,2]
[372587803,1752694263112,-493.91,0.00020664,2]
[372587804,1752694263121,-460.0,0.00020664,2]
[372587805,1752694263130,-3695.96,0.00020664,2]
[372587806,1752694263140,-460.0,0.00020664,2]
[372587807,1752694263149,-460.0,0.00020664,2]
[372587808,1752694263158,-460.0,0.00020664,2]
[372587809,1752694263167,-1320.64,0.00020664,2]
[372587810,1752694263176,-467.9,0.00020664,2]
[372587811,1752694263185,-2898.84,0.00020664,2]
[372587812,1752694263196,-460.0,0.00020664,2]
[372587813,1752694263205,-1132.7,0.00020664,2]
[372587814,1752694263214,-211.80207514,0.00020674,2]
[372587815,1752694263224,-2031.67,0.00020676,2]
[372587816,1752694263234,-732.34,0.00020683,2]
[372587817,1752694263243,-1656.95,0.00020684,2]
[372587818,1752694263253,-587.64,0.00020684,2]
[372587819,1752694263262,-460.0,0.00020684,2]
[372587820,1752694263272,-1564.78,0.00020684,2]
[372587821,1752694263281,-460.0,0.00020684,2]
[372587822,1752694263292,-772.32,0.00020684,2]
[372587823,1752694263301,-460.0,0.00020684,2]
[372587824,1752694263311,-3144.44,0.00020684,2]
[372587825,1752694263321,-1330.7,0.00020684,2]
[372587826,1752694263330,-1896.94,0.00020684,2]
[372587827,1752694263339,-1097.47,0.00020684,2]
[372587828,1752694263349,-1469.82,0.00020684,2]
[372587829,1752694263358,-957.9,0.00020684,2]
[372587830,1752694263367,-460.0,0.00020684,2]
[372587831,1752694263375,-460.0,0.00020684,2]
[372587832,1752694263385,-460.0,0.00020684,2]
[372587833,1752694263395,-2876.39,0.00020684,2]
[372587834,1752694263405,-460.0,0.00020684,2]
[372587835,1752694263415,-1934.86,0.00020684,2]
[372587836,1752694263424,-2608.13,0.00020684,2]
[372587837,1752694263434,-460.0,0.00020684,2]
[372587838,1752694263444,-460.0,0.00020684,2]
[372587839,1752694263455,-460.0,0.00020684,2]
[372587840,1752694263464,-460.0,0.00020684,2]
[372587841,1752694263472,-526.01,0.00020684,2]
[372587842,1752694263482,-460.0,0.00020684,2]
[372587843,1752694263491,-491.31,0.00020684,2]
[372587844,1752694263501,-1378.67,0.00020684,2]
[372587845,1752694263511,-830.86,0.00020684,2]
[372587846,1752694263520,-1359.65,0.00020684,2]
[372587847,1752694263528,-460.0,0.00020684,2]
[372587848,1752694263537,-1983.58,0.00020684,2]
[372587849,1752694263547,-931.2,0.00020684,2]
[372587850,1752694263556,-1745.99,0.00020684,2]
[372587851,1752694263566,-503.6,0.00020684,2]
[372587852,1752694263576,-922.13,0.00020684,2]
[372587853,1752694263586,-2672.79,0.00020684,2]
[372587854,1752694263595,-640.94,0.00020684,2]
[372587855,1752694263604,-9838.15,0.00020684,2]
[372587856,1752694263614,-2925.31,0.00020684,2]
[372587857,1752694263624,-2608.25,0.00020684,2]
[372587858,1752694263633,-460.0,0.00020684,2]
[372587859,1752694263643,-869.77,0.00020684,2]
[372587860,1752694263653,-460.0,0.00020684,2]